fUST/lending_fUST_20241218
["ID","MTS","AMOUNT","RATE_DAILY","PERIOD"]
[345767324,1734456643379,-166.496498,0.00023435,2]
[345767325,1734456643390,-305.99168078,0.0002365,2]
[345767326,1734456643399,-609.838,0.0002375,2]
[345767327,1734456643410,-151.284531,0.000238,2]
[345767328,1734456643419,-225.40262281,0.0002397,2]
[345767329,1734456643429,-500.0,0.00023999,2]
[345767330,1734456643439,-321.41137871,0.00023999,2]
[345767331,1734456643453,-609.8,0.00023999,2]
[345767332,1734456643463,-500.0,0.00023999,2]
[345767333,1734456643473,-500.0,0.00023999,2]
[345767334,1734456643483,-207.1032831,0.00023999,2]
[345767335,1734456643492,-452.47478637,0.00023999,2]
[345767336,1734456643502,-500.0,0.00023999,2]
[345767337,1734456643511,-500.0,0.00023999,2]
[345767338,1734456643521,-500.0,0.00023999,2]
[345767339,1734456643531,-500.0,0.00023999,2]
[345767340,1734456643541,-27795.1418712,0.00024,2]
[345767341,1734456643566,-3608.13447345,0.00024,2]
[345767350,1734456646158,-19807.1563704,0.00024,2]
[345767351,1734456646171,-79493.92321842,0.00024,2]
[345767353,1734456786866,166.371169,0.00013973,2]
[345767369,1734457707405,9330.3697799,0.0001,2]
[345767434,1734457832492,-234.743852,0.00020975,2]
[345767436,1734457832502,-5497.972802,0.00021255,2]
[345767438,1734457832512,-886.23053406,0.00021873,2]
[345767440,1734457832524,-300.0,0.00021899,2]
[345767442,1734457832533,-10424.49625106,0.000219,4]
[345767444,1734457832544,-13578.504864,0.000219,4]
[345767706,1734457838442,-329.62620903,0.000219,4]
[345767731,1734457840564,-819.32607797,0.000219,4]
[345767765,1734457843479,-2096.70120721,0.000219,4]
[345767766,1734457843491,-5039.29324593,0.000219,4]
[345767801,1734457846435,-7809.11917717,0.000219,4]
[345767857,1734458164580,165.789157,0.00013973,2]
[345767907,1734459032512,-156.164284,0.00020576,2]
[345767908,1734459032522,-170.371893,0.00020623,2]
[345767909,1734459032531,-175.056892,0.00020676,2]
[345767910,1734459032541,-300.0,0.00020874,2]
[345767911,1734459032551,-1463.0062698,0.00020875,2]
[345767912,1734459032562,-23436.9937302,0.00020875,2]
[345767913,1734459032571,-305.5595727,0.00021092,2]
[345767914,1734459032581,-7918.6592083,0.00021164,2]
[345767915,1734459032591,-7918.6592083,0.00021554,2]
[345767917,1734459032600,-164.990375,0.0002156,4]
[345767919,1734459032610,-195.88604175,0.000217,2]
[345767921,1734459032619,-2059.34169475,0.000219,4]
[345767922,1734459032632,-10749.0,0.000219,4]
[345767923,1734459032652,-16564.17356853,0.000219,4]
[345767925,1734459032664,-9736.64101603,0.000219,4]
[345767928,1734459032688,-69519.00515348,0.000219,4]
[345767930,1734459032698,-2988.42385106,0.000219,2]
[345767932,1734459032707,-186339.22001546,0.00022,4]
[345768020,1734459038702,-924.69332989,0.00022,4]
[345768021,1734459038713,-4298.4,0.00022,4]
[345768022,1734459038750,-2911.5831981,0.00022,4]
[345768023,1734459038762,-1649.302789,0.00022,4]
[345768094,1734459043608,-614.5877581,0.00022,4]
[345768095,1734459043620,-1094.37855642,0.00022,4]
[345768147,1734459046634,-371.35201545,0.00022,4]
[345768603,1734459127445,165.642907,0.00013973,2]
[345768604,1734459164135,1000.0,0.0001766,2]
[345768605,1734459199563,1000.0,0.0001766,2]
[345768629,1734460005911,3002.0,0.00015,2]
[345768634,1734460107952,156.06676808,0.000176,2]
[345768635,1734460112532,274.99879481,0.0001,2]
[345768636,1734460118253,1757.31273839,0.00011,2]
[345770766,1734460232728,-300.0,0.00020486,2]
[345770767,1734460232745,-300.0,0.00020486,2]
[345770769,1734460232758,-266.2557403,0.00020487,2]
[345770773,1734460232814,-430.16,0.00020487,2]
[345770774,1734460232826,-7304.79897069,0.00020487,2]
[345770805,1734460238961,-7759.78849601,0.00020487,2]
[345770806,1734460238971,-262.88117816,0.00021,2]
[345770807,1734460238981,-10319.81242366,0.00021,2]
[345770808,1734460238997,-236.91453113,0.00021,2]
[345770809,1734460239007,-170.371894,0.00021034,2]
[345770810,1734460239016,-518.62574118,0.000219,2]
[345770811,1734460239025,-500.0,0.00021973,2]
[345770812,1734460239035,-503.8925272,0.00021973,2]
[345770813,1734460239046,-2084.58049731,0.00022,2]
[345770814,1734460239055,-1177.9748487,0.00022,4]
[345770815,1734460239086,-97668.5457796,0.00022,4]
[345770862,1734460246768,-1559.94439874,0.00022,4]
[345770870,1734460533196,2077.32,0.0002,2]
[345770873,1734460610940,165.208487,0.00013973,2]
[345770875,1734460648045,1207.0,0.0002,3]
[345770876,1734460648589,1205.0,0.0002,3]
[345770877,1734460648882,1205.0,0.0002,3]
[345770878,1734460649190,1205.0,0.0002,3]
[345770879,1734460716153,10000.0,0.00024,60]
[345770880,1734460725739,10000.0,0.0002557,120]
[345770881,1734460749653,3700.0,0.0002557,120]
[345770912,1734461432023,-468.9522468,0.00020603,2]
[345770914,1734461432036,-2631.84771693,0.00020681,2]
[345770916,1734461432046,-305.99168078,0.00020681,2]
[345770918,1734461432055,-234.743851,0.00020781,2]
[345770920,1734461432064,-255.5843281,0.00020851,2]
[345770922,1734461432074,-609.937,0.000209,2]
[345770924,1734461432083,-352.13484305,0.00020908,2]
[345770936,1734461432192,-661.84192058,0.00020908,2]
[345771410,1734461437976,-683.83130587,0.00020908,2]
[345771412,1734461437986,-151.47865504,0.00020977,2]
[345771414,1734461437996,-300.0,0.00021077,2]
[345771416,1734461438005,-300.0,0.00021077,2]
[345771418,1734461438014,-4815.41855756,0.00021078,2]
[345771421,1734461438026,-1264.90603169,0.00021078,2]
[345771425,1734461438056,-702.66160215,0.00021078,2]
[345771428,1734461438075,-165.208487,0.00021209,2]
[345771430,1734461438086,-351.2291458,0.000213,2]
[345771432,1734461438097,-213.8615731,0.00021315,2]
[345771434,1734461438107,-459.0051285,0.00021315,2]
[345771436,1734461438116,-151.47865502,0.00021439,2]
[345771438,1734461438126,-286.2839225,0.0002178,2]
[345771440,1734461438136,-182.328139,0.00021802,2]
[345771442,1734461438146,-877.51591671,0.000219,2]
[345771444,1734461438156,-151.47865502,0.000219,2]
[345771446,1734461438164,-500.0,0.00021973,2]
[345771448,1734461438173,-8272.04636979,0.00022,4]
[345771450,1734461438185,-3010.7417984,0.00022,4]
[345771452,1734461438199,-10763.09660802,0.00022,4]
[345771583,1734461439975,-1138.17109359,0.00022,4]
[345771584,1734461440156,-93781.86897935,0.00022,4]
[345771586,1734461440166,-8037.0,0.00022,2]
[345771587,1734461440177,-3426.0,0.00022,2]
[345771588,1734461440189,-197.0,0.00022,2]
[345771589,1734461440201,-197.0,0.00022192,2]
[345771590,1734461440212,-877.51591667,0.00022543,2]
[345771591,1734461440222,-160.311,0.00022879,2]
[345771592,1734461440234,-420.0,0.00022925,2]
[345771593,1734461440244,-133.30410398,0.00023014,2]
[345771646,1734461445999,-420.0,0.00023184,2]
[345771647,1734461446009,-877.51591667,0.00023186,2]
[345771648,1734461446018,-179.868347,0.00023562,2]
[345771649,1734461446028,-170.29630177,0.00023745,2]
[345771650,1734461446040,-151.0,0.000238,6]
[345771651,1734461446049,-151.284531,0.000238,2]
[345771652,1734461446059,-2390.73908084,0.000238,2]
[345771653,1734461446067,-877.51591667,0.00023829,2]
[345771654,1734461446077,-170.29630177,0.00023845,2]
[345771655,1734461446087,-500.0,0.00023873,2]
[345771656,1734461446096,-500.0,0.00023873,2]
[345771657,1734461446105,-500.0,0.00023873,2]
[345771658,1734461446115,-8728.47452399,0.000239,2]
[345771659,1734461446124,-10104.23770479,0.000239,2]
[345771660,1734461446136,-4278.36964325,0.000239,2]
[345771664,1734461619877,164.601988,0.00013973,2]
[345771690,1734462542180,164.481753,0.00013973,2]
[345771745,1734462632416,-164.481753,0.00021209,2]
[345771747,1734462632426,-300.0,0.00021799,2]
[345771749,1734462632436,-300.0,0.00021799,2]
[345771751,1734462632446,-13578.504864,0.000218,4]
[345771753,1734462632456,-1000.0,0.00022,22]
[345771756,1734462632466,-175.056892,0.00022035,2]
[345771758,1734462632475,-172.0917906,0.00022606,2]
[345771760,1734462632485,-584.345,0.000227,2]
[345771762,1734462632494,-2929.0420431,0.00022832,2]
[345771764,1734462632504,-1000.0,0.00023,23]
[345771766,1734462632513,-179.868347,0.00023562,2]
[345771768,1734462632523,-420.0,0.00023693,2]
[345771770,1734462632535,-184.0,0.00023792,2]
[345771772,1734462632544,-184.09,0.00023792,2]
[345771774,1734462632553,-151.0,0.00023826,2]
[345771776,1734462632562,-160.312,0.00023899,5]
[345771778,1734462632572,-162062.74633825,0.000239,3]
[345771780,1734462632582,-151.0,0.000239,7]
[345771782,1734462632592,-151.0,0.000239,7]
[345771784,1734462632605,-151.0,0.000239,7]
[345771786,1734462632616,-219.282458,0.000239,7]
[345771788,1734462632626,-219.282458,0.000239,7]
[345771790,1734462632636,-151.0,0.000239,7]
[345771792,1734462632646,-3000.0,0.000239,2]
[345771794,1734462632655,-1912.59126468,0.000239,2]
[345771796,1734462632665,-82904.24184187,0.0002391,2]
[345771798,1734462632676,-4364.23726199,0.0002391,2]
[345771800,1734462632686,-3000.0,0.0002391,2]
[345771802,1734462632695,-3000.0,0.0002392,2]
[345771804,1734462632705,-3000.0,0.0002393,2]
[345771806,1734462632715,-3000.0,0.0002394,2]
[345771808,1734462632724,-3000.0,0.0002395,2]
[345771810,1734462632733,-3000.0,0.0002396,2]
[345771813,1734462632743,-3000.0,0.0002397,2]
[345771815,1734462632753,-420.0,0.00023979,2]
[345771817,1734462632763,-3000.0,0.0002398,2]
[345771819,1734462632772,-3000.0,0.0002399,2]
[345771821,1734462632782,-201.56078784,0.00023999,2]
[345771823,1734462632791,-500.0,0.00023999,2]
[345771825,1734462632800,-500.0,0.00023999,2]
[345771827,1734462632810,-153.08547817,0.00023999,2]
[345771829,1734462632820,-500.0,0.00023999,2]
[345771831,1734462632829,-500.0,0.00023999,2]
[345771833,1734462632838,-159.32393815,0.00023999,2]
[345771835,1734462632851,-500.0,0.00023999,2]
[345771837,1734462632860,-179.48418669,0.00023999,2]
[345771839,1734462632870,-500.0,0.00023999,2]
[345771841,1734462632879,-500.0,0.00023999,2]
[345771843,1734462632888,-500.0,0.00023999,2]
[345771845,1734462632897,-500.0,0.00023999,2]
[345771847,1734462632907,-625.47291411,0.00023999,2]
[345771849,1734462632916,-500.0,0.00023999,2]
[345771851,1734462632925,-500.0,0.00023999,2]
[345771853,1734462632934,-500.0,0.00023999,2]
[345771855,1734462632944,-500.0,0.00023999,2]
[345771857,1734462632953,-500.0,0.00023999,2]
[345771859,1734462632962,-500.0,0.00023999,2]
[345771861,1734462632972,-500.0,0.00023999,2]
[345771863,1734462632982,-500.0,0.00023999,2]
[345771865,1734462632991,-500.0,0.00023999,2]
[345771867,1734462633001,-363.4283587,0.00023999,2]
[345771869,1734462633011,-500.0,0.00023999,2]
[345771871,1734462633021,-500.0,0.00023999,2]
[345771873,1734462633030,-500.0,0.00023999,2]
[345771875,1734462633039,-500.0,0.00023999,2]
[345771877,1734462633049,-500.0,0.00023999,2]
[345771879,1734462633058,-500.0,0.00023999,2]
[345771881,1734462633068,-500.0,0.00023999,2]
[345771883,1734462633077,-500.0,0.00023999,2]
[345771885,1734462633089,-500.0,0.00023999,2]
[345771887,1734462633101,-500.0,0.00023999,2]
[345771889,1734462633113,-500.0,0.00023999,2]
[345771891,1734462633123,-500.0,0.00023999,2]
[345771893,1734462633134,-500.0,0.00023999,2]
[345771895,1734462633144,-500.0,0.00023999,2]
[345771897,1734462633154,-500.0,0.00023999,2]
[345771899,1734462633164,-637.35846647,0.00023999,2]
[345771901,1734462633174,-500.0,0.00023999,2]
[345771903,1734462633184,-500.0,0.00023999,2]
[345771905,1734462633194,-500.0,0.00023999,2]
[345771907,1734462633204,-500.0,0.00023999,2]
[345771909,1734462633214,-500.0,0.00023999,2]
[345771911,1734462633224,-91600.81996452,0.00024,3]
[345771913,1734462633234,-40000.0,0.00024,2]
[345771914,1734462633244,-261.151742,0.00024,7]
[345771916,1734462633253,-151.0,0.00024,7]
[345771918,1734462633263,-151.0,0.00024,7]
[345771920,1734462633272,-151.0,0.00024,7]
[345771922,1734462633281,-151.0,0.00024,7]
[345771923,1734462633290,-151.0,0.00024,7]
[345771925,1734462633299,-151.0,0.00024,7]
[345771927,1734462633309,-151.516839,0.00024,7]
[345771929,1734462633319,-151.0,0.00024,5]
[345771931,1734462633328,-151.0,0.00024,7]
[345771933,1734462633337,-151.0,0.00024,7]
[345771935,1734462633347,-151.0,0.00024,7]
[345771936,1734462633361,-151.0,0.00024,7]
[345771938,1734462633371,-151.0,0.00024,7]
[345771940,1734462633380,-151.0,0.00024,7]
[345771942,1734462633395,-219.282458,0.00024,7]
[345771945,1734462633409,-219.282458,0.00024,7]
[345771947,1734462633423,-219.282458,0.00024,7]
[345771948,1734462633436,-219.282458,0.00024,7]
[345771949,1734462633450,-151.0,0.00024,7]
[345771950,1734462633461,-151.0,0.00024,7]
[345771951,1734462633472,-151.0,0.00024,7]
[345771952,1734462633486,-151.0,0.00024,7]
[345771953,1734462633499,-151.0,0.00024,7]
[345771954,1734462633511,-151.0,0.00024,7]
[345771955,1734462633523,-151.0,0.00024,7]
[345771956,1734462633539,-151.0,0.00024,7]
[345771957,1734462633552,-151.0,0.00024,7]
[345771958,1734462633563,-151.0,0.00024,7]
[345771959,1734462633575,-152.228969,0.00024,7]
[345771960,1734462633587,-226.118112,0.00024,7]
[345771961,1734462633603,-226.118112,0.00024,7]
[345771962,1734462633617,-226.118112,0.00024,7]
[345771963,1734462633632,-226.118112,0.00024,7]
[345771964,1734462633643,-3000.0,0.00024,2]
[345771965,1734462633655,-151.0,0.00024,7]
[345771966,1734462633667,-151.0,0.00024,7]
[345771967,1734462633679,-151.0,0.00024,7]
[345771968,1734462633691,-151.0,0.00024,7]
[345771969,1734462633703,-151.0,0.00024,7]
[345771970,1734462633714,-151.0,0.00024,7]
[345771971,1734462633727,-377.108969,0.00024,7]
[345771972,1734462633739,-377.108969,0.00024,7]
[345771973,1734462633750,-377.108969,0.00024,7]
[345771974,1734462633762,-377.108969,0.00024,7]
[345771975,1734462633773,-388.884786,0.00024,7]
[345771976,1734462633783,-388.884786,0.00024,7]
[345771977,1734462633799,-388.884786,0.00024,7]
[345771978,1734462633811,-388.884786,0.00024,7]
[345771979,1734462633821,-151.0,0.00024,7]
[345771980,1734462633834,-151.0,0.00024,7]
[345771981,1734462633846,-151.0,0.00024,7]
[345771982,1734462633861,-151.0,0.00024,7]
[345771983,1734462633875,-151.0,0.00024,7]
[345771984,1734462633887,-151.0,0.00024,7]
[345771985,1734462633900,-151.0,0.00024,7]
[345771986,1734462633911,-151.0,0.00024,7]
[345771987,1734462633926,-1000.0,0.00024,24]
[345771988,1734462633938,-151.0,0.00024,7]
[345771989,1734462633950,-151.0,0.00024,7]
[345771990,1734462633963,-151.0,0.00024,7]
[345771991,1734462633975,-151.0,0.00024,7]
[345771992,1734462633985,-273.182876,0.00024,7]
[345771993,1734462633995,-151.0,0.00024,7]
[345771994,1734462634005,-273.182876,0.00024,7]
[345771995,1734462634016,-151.0,0.00024,7]
[345771996,1734462634027,-151.0,0.00024,7]
[345771997,1734462634039,-151.0,0.00024,7]
[345771998,1734462634052,-151.0,0.00024,7]
[345771999,1734462634065,-692.355311,0.00024,7]
[345772000,1734462634077,-151.0,0.00024,7]
[345772001,1734462634090,-692.355311,0.00024,7]
[345772002,1734462634103,-151.0,0.00024,7]
[345772003,1734462634114,-151.0,0.00024,7]
[345772004,1734462634125,-151.0,0.00024,7]
[345772005,1734462634137,-156.874566,0.00024,2]
[345772006,1734462634148,-151.0,0.00024,7]
[345772007,1734462634162,-151.0,0.00024,7]
[345772008,1734462634174,-151.0,0.00024,7]
[345772009,1734462634185,-151.0,0.00024,7]
[345772010,1734462634195,-151.0,0.00024,7]
[345772011,1734462634205,-151.0,0.00024,7]
[345772012,1734462634217,-4215.0,0.00024,3]
[345772013,1734462634228,-547.981646,0.00024,7]
[345772014,1734462634239,-547.981646,0.00024,7]
[345772015,1734462634250,-547.981646,0.00024,7]
[345772016,1734462634261,-547.981646,0.00024,7]
[345772017,1734462634272,-209.013315,0.00024,7]
[345772018,1734462634284,-209.013315,0.00024,7]
[345772019,1734462634295,-209.013315,0.00024,7]
[345772020,1734462634305,-209.013315,0.00024,7]
[345772021,1734462634317,-3000.0,0.0002401,2]
[345772022,1734462634329,-3000.0,0.0002402,2]
[345772023,1734462634340,-1912.59126466,0.00024025,2]
[345772024,1734462634354,-3000.0,0.0002403,2]
[345772025,1734462634365,-151.0,0.0002403,7]
[345772026,1734462634376,-377.108969,0.0002403,7]
[345772027,1734462634388,-377.108969,0.0002403,7]
[345772028,1734462634400,-388.884786,0.0002403,7]
[345772029,1734462634411,-388.884786,0.0002403,7]
[345772030,1734462634422,-151.0,0.0002403,7]
[345772031,1734462634433,-151.0,0.0002403,7]
[345772032,1734462634445,-151.0,0.0002403,7]
[345772033,1734462634456,-151.0,0.0002403,7]
[345772034,1734462634468,-300.835625,0.0002403,7]
[345772035,1734462634482,-151.0,0.0002403,7]
[345772036,1734462634495,-151.0,0.0002403,7]
[345772037,1734462634508,-273.182876,0.0002403,7]
[345772038,1734462634520,-273.182876,0.0002403,7]
[345772039,1734462634534,-151.0,0.0002403,7]
[345772040,1734462634546,-151.0,0.0002403,7]
[345772041,1734462634557,-151.0,0.0002403,7]
[345772042,1734462634568,-151.0,0.0002403,7]
[345772043,1734462634579,-692.355311,0.0002403,7]
[345772044,1734462634590,-151.0,0.0002403,7]
[345772045,1734462634601,-692.355311,0.0002403,7]
[345772046,1734462634611,-151.0,0.0002403,7]
[345772047,1734462634625,-151.0,0.0002403,7]
[345772048,1734462634635,-151.0,0.0002403,7]
[345772049,1734462634647,-242.76118,0.0002403,7]
[345772050,1734462634658,-151.0,0.0002403,7]
[345772051,1734462634669,-151.0,0.0002403,7]
[345772052,1734462634680,-151.0,0.0002403,7]
[345772053,1734462634690,-547.981646,0.0002403,7]
[345772054,1734462634701,-547.981646,0.0002403,7]
[345772055,1734462634712,-209.013315,0.0002403,7]
[345772056,1734462634723,-209.013315,0.0002403,7]
[345772057,1734462634734,-3000.0,0.0002404,2]
[345772058,1734462634744,-151.0,0.0002404,7]
[345772059,1734462634755,-151.0,0.0002404,7]
[345772060,1734462634765,-151.0,0.0002404,7]
[345772061,1734462634776,-3000.0,0.0002405,2]
[345772062,1734462634787,-3372.595209,0.0002406,2]
[345772063,1734462634798,-151.0,0.000241,7]
[345772064,1734462634809,-151.0,0.000241,7]
[345772065,1734462634820,-1912.59126466,0.0002415,2]
[345772066,1734462634831,-151.0,0.00024164,7]
[345772067,1734462634842,-151.0,0.00024164,7]
[345772068,1734462634855,-151.0,0.00024164,7]
[345772069,1734462634866,-219.282458,0.00024164,7]
[345772070,1734462635013,-219.282458,0.00024164,7]
[345772071,1734462635023,-151.0,0.00024164,7]
[345772072,1734462635033,-151.0,0.00024164,7]
[345772073,1734462635042,-151.0,0.00024164,7]
[345772074,1734462635052,-226.118112,0.00024164,7]
[345772075,1734462635061,-226.118112,0.00024164,7]
[345772076,1734462635071,-151.0,0.00024212,7]
[345772077,1734462635081,-263.218497,0.00024212,7]
[345772078,1734462635091,-151.0,0.00024212,7]
[345772079,1734462635102,-151.0,0.00024212,7]
[345772080,1734462635111,-1715.2457965,0.00024212,2]
[345772081,1734462635121,-170.29630176,0.00024232,2]
[345772082,1734462635131,-151.0,0.00024299,7]
[345772083,1734462635141,-219.282458,0.00024299,7]
[345772084,1734462635151,-219.282458,0.00024299,7]
[345772085,1734462635161,-151.0,0.00024299,7]
[345772086,1734462635172,-151.0,0.00024299,7]
[345772087,1734462635182,-93854.95327263,0.000243,2]
[345772088,1734462635192,-151.0,0.000243,6]
[345772089,1734462635201,-255.103472,0.000243,7]
[345772090,1734462635212,-219.282458,0.000243,7]
[345772091,1734462635222,-219.282458,0.000243,7]
[345772092,1734462635232,-151.0,0.000243,7]
[345772093,1734462635241,-151.0,0.000243,7]
[345772094,1734462635251,-151.0,0.000243,7]
[345772095,1734462635262,-151.0,0.000243,7]
[345772096,1734462635271,-151.0,0.000243,7]
[345772097,1734462635280,-226.118112,0.000243,7]
[345772098,1734462635290,-226.118112,0.000243,7]
[345772099,1734462635299,-151.0,0.000243,7]
[345772100,1734462635307,-151.0,0.000243,7]
[345772101,1734462635317,-151.0,0.000243,7]
[345772102,1734462635326,-377.108969,0.000243,7]
[345772103,1734462635337,-377.108969,0.000243,7]
[345772104,1734462635346,-151.0,0.000243,7]
[345772105,1734462635358,-388.884786,0.000243,7]
[345772106,1734462635367,-388.884786,0.000243,7]
[345772107,1734462635376,-151.0,0.000243,7]
[345772108,1734462635385,-151.0,0.000243,7]
[345772109,1734462635395,-218.010155,0.000243,7]
[345772110,1734462635404,-151.0,0.000243,7]
[345772111,1734462635414,-151.0,0.000243,7]
[345772112,1734462635423,-151.0,0.000243,7]
[345772113,1734462635432,-151.0,0.000243,7]
[345772114,1734462635441,-273.182876,0.000243,7]
[345772115,1734462635451,-273.182876,0.000243,7]
[345772116,1734462635460,-151.0,0.000243,7]
[345772117,1734462635470,-151.0,0.000243,7]
[345772118,1734462635479,-151.0,0.000243,7]
[345772119,1734462635488,-151.0,0.000243,7]
[345772120,1734462635497,-692.355311,0.000243,7]
[345772121,1734462635507,-151.0,0.000243,7]
[345772122,1734462635516,-692.355311,0.000243,7]
[345772123,1734462635525,-151.0,0.000243,7]
[345772124,1734462635535,-151.0,0.000243,7]
[345772125,1734462635548,-151.0,0.000243,7]
[345772126,1734462635557,-151.0,0.000243,7]
[345772127,1734462635568,-201.293778,0.000243,7]
[345772128,1734462635578,-547.981646,0.000243,7]
[345772129,1734462635587,-547.981646,0.000243,7]
[345772130,1734462635596,-209.013315,0.000243,7]
[345772131,1734462635608,-209.013315,0.000243,7]
[345772132,1734462635618,-2778.262,0.00024302,15]
[345772133,1734462635628,-2500.0,0.00024312,2]
[345772134,1734462635637,-151.0,0.00024332,7]
[345772135,1734462635647,-388.884786,0.00024332,7]
[345772136,1734462635656,-388.884786,0.00024332,7]
[345772137,1734462635666,-273.800012,0.00024332,7]
[345772138,1734462635675,-151.0,0.00024332,7]
[345772139,1734462635684,-151.0,0.00024332,7]
[345772140,1734462635693,-151.0,0.00024332,7]
[345772141,1734462635703,-151.0,0.00024332,7]
[345772142,1734462635712,-273.182876,0.00024332,7]
[345772143,1734462635721,-273.182876,0.00024332,7]
[345772144,1734462635730,-151.0,0.00024332,7]
[345772145,1734462635740,-245.296614,0.00024332,7]
[345772146,1734462635749,-151.0,0.00024332,7]
[345772147,1734462635758,-170.29630176,0.00024332,2]
[345772148,1734462635767,-110661.0,0.00024333,5]
[345772149,1734462635777,-255.965858,0.00024333,7]
[345772150,1734462635787,-219.282458,0.00024333,7]
[345772151,1734462635797,-219.282458,0.00024333,7]
[345772152,1734462635807,-245.000002,0.00024333,7]
[345772153,1734462635818,-151.0,0.00024333,7]
[345772154,1734462635827,-210.562104,0.00024333,7]
[345772155,1734462635837,-208.462541,0.00024333,7]
[345772156,1734462635846,-226.118112,0.00024333,7]
[345772157,1734462635858,-226.118112,0.00024333,7]
[345772158,1734462635867,-151.0,0.00024333,7]
[345772159,1734462635877,-151.0,0.00024333,7]
[345772160,1734462635887,-151.0,0.00024333,7]
[345772161,1734462635897,-377.108969,0.00024333,7]
[345772162,1734462635906,-377.108969,0.00024333,7]
[345772163,1734462635915,-388.884786,0.00024333,7]
[345772164,1734462635925,-388.884786,0.00024333,7]
[345772165,1734462635934,-151.0,0.00024333,7]
[345772166,1734462635943,-151.0,0.00024333,7]
[345772167,1734462635952,-151.0,0.00024333,7]
[345772168,1734462635961,-151.0,0.00024333,7]
[345772169,1734462635970,-273.182876,0.00024333,7]
[345772170,1734462635979,-273.182876,0.00024333,7]
[345772171,1734462635989,-151.0,0.00024333,7]
[345772172,1734462635998,-151.0,0.00024333,7]
[345772173,1734462636007,-151.0,0.00024333,7]
[345772174,1734462636017,-692.355311,0.00024333,7]
[345772175,1734462636026,-151.0,0.00024333,7]
[345772176,1734462636035,-692.355311,0.00024333,7]
[345772177,1734462636044,-151.0,0.00024333,7]
[345772178,1734462636054,-151.0,0.00024333,7]
[345772179,1734462636063,-188.702176,0.00024333,7]
[345772180,1734462636073,-151.0,0.00024333,7]
[345772181,1734462636082,-547.981646,0.00024333,7]
[345772182,1734462636092,-547.981646,0.00024333,7]
[345772183,1734462636102,-209.013315,0.00024333,7]
[345772184,1734462636111,-209.013315,0.00024333,7]
[345772185,1734462636120,-2500.0,0.00024342,2]
[345772186,1734462636129,-666.0,0.000244,2]
[345772187,1734462636139,-151.0,0.000244,10]
[345772188,1734462636149,-151.0,0.000244,5]
[345772189,1734462636159,-151.0,0.000244,5]
[345772190,1734462636168,-181.86645912,0.000244,2]
[345772191,1734462636178,-211.20003444,0.00024499,2]
[345772192,1734462636188,-220.36657839,0.00024499,2]
[345772193,1734462636197,-497.45552048,0.00024499,2]
[345772194,1734462636206,-2659.0,0.000245,2]
[345772195,1734462636215,-102061.71578626,0.000245,5]
[345772196,1734462636383,-368.82688662,0.000245,5]
[345772197,1734462636396,-11694.64397821,0.000245,5]
[345772198,1734462636409,-5330.5,0.000245,5]